bitfinex-derivatives/quotes_ETHF0:USTF0_20260316
["timestamp","ask_amount","ask_price","bid_price","bid_amount"]
[1773687021436,8.40608078,2335.1,2334.0,8.56644074]
[1773687021737,8.40608078,2335.1,2333.4,6.84515733]
[1773687021738,8.40608078,2334.9,2333.7,8.56644074]
[1773687022536,8.40608078,2334.9,2333.7,8.57107502]
[1773687026546,8.61643239,2334.9,2333.7,8.57107502]
[1773687027743,8.40608078,2334.9,2333.9,8.07884028]
[1773687028446,8.44231961,2335.2,2334.1,8.07884028]
[1773687029046,8.44231961,2335.2,2334.1,8.19123028]
[1773687029246,8.44231961,2335.2,2334.1,8.07884028]
[1773687029446,8.44231961,2335.2,2334.3,8.07884028]
[1773687029845,8.44231961,2335.2,2334.1,8.07884028]
[1773687030046,8.44231961,2335.2,2334.1,8.18762028]
[1773687030850,8.44231961,2335.2,2334.1,8.07884028]
[1773687031052,8.44231961,2335.2,2333.8,8.07884028]
[1773687031252,8.44231961,2335.2,2333.8,8.18921028]
[1773687031555,8.44231961,2335.2,2333.8,8.07884028]
[1773687033747,8.44231961,2334.9,2333.8,8.07884028]
[1773687033953,8.44231961,2334.7,2333.8,8.07884028]
[1773687034149,8.44769772,2334.7,2333.8,8.07884028]
[1773687035651,8.44769772,2334.7,2333.7,0.00463428]
[1773687035852,9.58901398,2334.7,2333.7,0.00463428]
[1773687036053,8.44231961,2334.0,2332.7,0.21432]
[1773687036253,8.44231961,2333.7,2332.3,4.53312887]
[1773687036451,8.44231961,2333.4,2332.3,4.53312887]
[1773687037662,8.44231961,2333.4,2332.3,4.19104887]
[1773687038761,8.65355431,2333.9,2332.5,4.98387725]
[1773687039062,8.65355431,2333.9,2332.7,4.99203053]
[1773687039462,8.91846643,2333.9,2332.7,4.99203053]
[1773687039853,8.44231961,2333.9,2332.9,4.97494444]
[1773687043458,8.44231961,2333.9,2332.2,5.0036558]
[1773687043459,8.44231961,2333.7,2332.2,5.0036558]
[1773687043965,8.44231961,2333.5,2332.2,5.0036558]
[1773687045266,8.44231961,2333.5,2332.4,4.96607327]
[1773687045466,8.44231961,2333.5,2332.6,4.9196742]
[1773687046166,8.44231961,2333.5,2332.8,4.90404745]
[1773687046663,8.44231961,2333.5,2332.6,4.80878305]
[1773687047063,0.21422,2333.9,2330.4,23.78985469]
[1773687047064,5.69822664,2332.1,2330.4,23.78985469]
[1773687047362,8.44231961,2331.9,2330.3,8.07884028]
[1773687047760,8.44231961,2331.9,2330.5,8.07884028]
[1773687047958,8.44231961,2331.7,2330.5,8.07884028]
[1773687048162,8.44231961,2331.7,2330.7,8.07884028]
[1773687048668,8.44231961,2331.7,2330.9,8.07884028]
[1773687049169,8.44231961,2331.7,2331.0,23.78985469]
[1773687049364,8.44231961,2331.5,2330.6,8.07884028]
[1773687049668,8.44231961,2331.5,2330.5,23.78985469]
[1773687050070,8.55339961,2331.5,2330.5,31.86869497]
[1773687050265,8.44231961,2331.3,2330.5,31.86869497]
[1773687050469,8.55744961,2331.1,2330.5,31.86869497]
[1773687051366,8.44231961,2331.5,2330.6,8.07884028]
[1773687051672,8.55166961,2331.5,2330.6,8.07884028]
[1773687052172,8.44231961,2331.5,2330.6,8.07884028]
[1773687052373,8.44231961,2331.5,2330.8,8.07884028]
[1773687052774,8.55333961,2331.5,2330.8,8.07884028]
[1773687053067,8.44231961,2331.5,2330.9,23.78985469]
[1773687053271,8.44231961,2331.5,2330.9,33.75461435]
[1773687054266,8.44231961,2331.5,2331.0,9.96475966]
[1773687054567,8.44231961,2331.5,2330.6,9.96475966]
[1773687054768,10.238683,2331.3,2330.5,9.96475966]
[1773687054968,10.238683,2331.3,2330.6,23.78985469]
[1773687055271,10.238683,2331.3,2330.7,10.13009979]
[1773687055469,10.238683,2331.3,2330.8,23.78985469]
[1773687056066,10.238683,2331.3,2330.8,33.91995448]
[1773687056669,10.06179266,2331.4,2330.9,10.13009979]
[1773687056864,10.16964266,2331.4,2330.9,10.13009979]
[1773687057065,10.06179266,2331.4,2330.8,23.78985469]
[1773687057468,10.17004266,2331.4,2330.8,23.78985469]
[1773687057671,10.06179266,2331.4,2330.9,10.13009979]
[1773687057871,3.56167606,2331.9,2331.1,10.13009979]
[1773687058068,10.06179266,2331.8,2330.8,10.13009979]
[1773687058274,10.17099266,2331.6,2330.9,10.13009979]
[1773687058474,10.17253266,2331.4,2331.0,9.773]
[1773687058868,10.17253266,2331.4,2331.1,23.78985469]
[1773687059272,10.06179266,2331.4,2331.1,23.78985469]
[1773687059470,10.06179266,2331.4,2330.8,10.13009979]
[1773687059671,10.06179266,2331.4,2330.9,9.783]
[1773687059878,10.06179266,2331.4,2331.0,9.6731]
[1773687060480,10.06179266,2331.4,2331.1,9.79]
[1773687060876,10.06179266,2331.7,2331.1,19.92009979]
[1773687061081,10.18302266,2331.7,2331.2,10.13009979]
[1773687061281,0.11832,2331.6,2331.2,10.13009979]
[1773687061482,10.17049266,2331.7,2331.2,10.13009979]
[1773687061779,10.06179266,2331.5,2330.9,10.13009979]
[1773687062081,10.06179266,2331.5,2331.0,9.803]
[1773687062383,10.17795266,2331.5,2331.1,9.807]
[1773687062582,10.06179266,2331.5,2331.2,9.69545]
[1773687062984,10.06179266,2331.5,2331.3,9.6956]
[1773687063182,16.81795524,2331.4,2330.8,10.13009979]
[1773687063378,6.75616258,2331.3,2331.0,10.13009979]
[1773687063584,10.17708266,2331.5,2331.1,9.817]
[1773687063775,6.87182631,2331.4,2331.1,9.817]
[1773687063979,16.93361897,2331.4,2331.1,9.817]
[1773687064283,10.06179266,2331.2,2331.0,9.821]
[1773687064479,10.27626266,2331.2,2329.9,10.13009979]
[1773687064682,10.06179266,2330.6,2330.0,19.95509979]
[1773687064881,10.06179266,2330.6,2330.1,10.13009979]
[1773687065085,3.77614606,2331.2,2330.1,10.13009979]
[1773687065283,16.81983956,2331.1,2330.1,10.13009979]
[1773687065475,6.7580469,2331.0,2330.1,10.13009979]
[1773687065679,6.7580469,2331.0,2329.8,0.60640329]
[1773687065680,6.7580469,2331.0,2330.3,10.13009979]
[1773687066486,10.06179266,2330.9,2330.5,10.13009979]
[1773687066687,10.06179266,2330.9,2330.6,9.838]
[1773687067487,16.8195206,2330.8,2330.7,2.73697593]
[1773687067786,7.59797164,2330.7,2330.6,9.846]
[1773687068187,7.59797164,2330.7,2330.2,10.13009979]
[1773687068388,7.59797164,2330.7,2330.3,9.848]
[1773687068585,7.59797164,2330.7,2330.3,10.13009979]
[1773687068783,9.56757988,2330.9,2329.8,0.60640329]
[1773687068983,16.32582977,2330.8,2330.1,10.13009979]
[1773687069286,6.75824989,2330.7,2330.1,10.13009979]
[1773687069488,9.37570354,2330.6,2330.2,19.90309979]
[1773687069682,9.32928721,2330.8,2330.2,10.13009979]
[1773687069888,16.08805913,2330.7,2330.3,19.90709979]
[1773687070086,6.75877192,2330.6,2330.4,9.78]
[1773687070288,6.75877192,2330.6,2330.5,9.783]
[1773687070988,6.75877192,2330.6,2330.5,9.791]
[1773687071689,6.75877192,2330.6,2330.3,10.13009979]
[1773687071889,6.75877192,2330.6,2330.5,9.8]
[1773687072189,6.75877192,2330.6,2330.1,10.13009979]
[1773687072391,15.98095035,2330.6,2330.2,19.93709979]
[1773687072589,6.75877192,2330.5,2330.2,19.93709979]
[1773687072791,6.75877192,2330.5,2330.3,10.13009979]
[1773687073091,6.75877192,2330.4,2330.3,10.13009979]
[1773687073293,9.17627061,2330.7,2330.3,10.13488743]
[1773687073493,9.17627061,2330.7,2330.4,9.818]
[1773687074194,9.17627061,2330.7,2330.5,9.107]
[1773687074396,9.18173935,2330.7,2330.5,4.51747118]
[1773687074595,9.18173935,2330.7,2330.3,10.13488743]
[1773687074894,9.18173935,2330.7,2330.6,9.829]
[1773687075095,9.18173935,2330.7,2330.6,9.07643568]
[1773687075292,9.18173935,2330.7,2330.6,9.80388074]
[1773687075599,9.44762593,2330.6,2330.5,4.49293491]
[1773687076097,9.44762593,2330.6,2330.5,4.30420296]
[1773687076297,9.44762593,2330.6,2330.3,0.00478764]
[1773687076497,9.44762593,2330.6,2330.4,9.843]
[1773687077189,9.44762593,2330.6,2330.3,0.00478764]
[1773687077399,9.44762593,2330.6,2330.4,9.849]
[1773687078097,9.44762593,2330.6,2330.5,9.854]
[1773687078294,9.44762593,2330.6,2330.5,9.855]
[1773687078597,9.44762593,2330.6,2330.3,0.00478764]
[1773687078797,9.44762593,2330.6,2330.4,9.858]
[1773687079195,9.44762593,2330.6,2330.3,0.00478764]
[1773687079394,9.44762593,2330.6,2330.4,9.863]
[1773687079595,9.44762593,2330.6,2330.3,0.00478764]
[1773687079895,9.44762593,2330.6,2330.4,9.864]
[1773687080296,9.44762593,2330.6,2330.3,0.00478764]
[1773687080495,9.44762593,2330.6,2330.4,9.869]
[1773687081199,0.00546874,2330.7,2330.4,21.08533299]
[1773687081398,0.00546874,2330.7,2330.5,11.21633299]
[1773687081697,6.10190551,2330.9,2330.5,11.21633299]
[1773687082502,6.10704517,2330.9,2330.5,11.21633299]
[1773687082995,6.10704517,2330.9,2330.6,9.882]
[1773687083193,6.10704517,2330.9,2330.3,12.95031035]
[1773687083396,6.10704517,2330.9,2330.4,22.83052271]
[1773687084404,6.10704517,2330.9,2330.4,12.94552271]
[1773687084596,6.10704517,2330.9,2330.5,9.891]
[1773687085199,11.63583448,2330.8,2330.4,12.94552271]
[1773687085399,5.92422779,2330.7,2330.5,9.895]
[1773687085902,5.92422779,2330.7,2330.5,22.84052271]
[1773687086603,5.90853952,2330.6,2330.3,12.95031035]
[1773687086906,5.90853952,2330.5,2330.4,9.902]
[1773687087106,11.38228329,2330.5,2330.4,9.903]
[1773687087300,5.47809868,2330.2,2329.8,0.60640329]
[1773687087501,5.47809868,2330.0,2329.6,9.905]
[1773687087701,5.90853952,2329.9,2329.6,22.85052271]
[1773687087895,17.97995993,2330.7,2329.7,12.94552271]
[1773687087896,5.42656402,2330.5,2329.7,12.94552271]
[1773687088100,11.31636224,2330.4,2329.9,12.94552271]
[1773687088300,11.31636224,2330.3,2330.0,12.94552271]
[1773687088506,5.42656402,2330.3,2330.1,9.91]
[1773687089200,5.04945305,2330.6,2330.0,12.94552271]
[1773687089503,5.04945305,2330.4,2330.1,9.915]
[1773687089810,4.97249188,2330.7,2330.2,12.94552271]
[1773687090101,4.97249188,2330.7,2330.0,12.94552271]
[1773687090604,4.97249188,2330.7,2330.2,12.94552271]
[1773687092505,4.97249188,2330.7,2330.3,12.94552271]
[1773687092705,6.46728658,2330.9,2330.3,12.94552271]
[1773687093097,3.58917565,2331.1,2330.3,12.94552271]
[1773687093306,6.40905074,2331.3,2330.3,12.94552271]
[1773687093706,6.40905074,2331.3,2330.4,9.936]
[1773687094008,6.40905074,2331.3,2330.5,12.94552271]
[1773687094204,6.41399996,2331.3,2330.5,12.94552271]
[1773687095012,6.41399996,2331.3,2330.6,9.942]
[1773687095406,6.41399996,2331.3,2330.5,12.94552271]
[1773687095606,6.41399996,2331.3,2330.6,9.944]
[1773687095804,6.41399996,2331.3,2330.6,22.88952271]
[1773687096210,6.41399996,2331.3,2329.8,12.78028099]
[1773687096211,6.16037562,2330.8,2329.8,12.78028099]
[1773687096404,6.16037562,2330.6,2329.4,12.94552271]
[1773687096612,6.48848614,2330.4,2329.4,12.94552271]
[1773687097310,6.48848614,2330.4,2329.4,12.94927963]
[1773687097610,6.60075614,2330.4,2329.4,12.94927963]
[1773687097808,6.60237614,2330.4,2329.4,12.94927963]
[1773687098505,6.48848614,2330.4,2329.6,12.94552271]
[1773687098710,6.59675614,2330.4,2329.6,12.94552271]
[1773687099710,6.59675614,2330.4,2329.7,9.964]
[1773687099911,6.70303614,2330.4,2329.4,12.94927963]
[1773687100208,6.70303614,2330.4,2329.4,0.00375692]
[1773687100612,7.12212886,2329.7,2329.3,9.966]
[1773687101114,7.23643886,2329.7,2329.3,12.94552271]
[1773687101511,7.23643886,2329.7,2329.3,22.91552271]
[1773687101813,7.23643886,2329.7,2329.3,22.91859143]
[1773687102011,7.23643886,2329.7,2329.3,12.94859143]
[1773687102313,7.12212886,2329.7,2329.3,22.92159143]
[1773687102513,7.12212886,2329.7,2329.3,0.00306872]
[1773687102812,7.12212886,2329.7,2329.3,22.92359143]
[1773687103007,7.12212886,2329.7,2329.3,12.94859143]
[1773687103208,7.12212886,2329.7,2329.3,22.92559143]
[1773687103515,7.12212886,2329.7,2329.3,12.94552271]
[1773687103716,7.12212886,2329.7,2329.2,9.979]
[1773687104011,7.12212886,2329.7,2329.2,22.92552271]
[1773687104913,6.85872292,2329.5,2328.4,12.94552271]
[1773687105113,0.00384884,2329.5,2328.6,12.94552271]
[1773687105306,0.00384884,2329.5,2328.8,12.94552271]
[1773687105510,0.00384884,2329.5,2329.0,12.94552271]
[1773687105710,0.00384884,2329.5,2329.0,22.93152271]
[1773687105913,0.00384884,2329.5,2329.1,12.94552271]
[1773687106108,6.8206354,2329.5,2328.9,22.93352271]
[1773687106407,6.8206354,2329.5,2329.0,12.94552271]
[1773687106605,6.8206354,2329.5,2328.8,12.94552271]
[1773687107408,6.8206354,2329.5,2328.9,12.94552271]
[1773687107603,6.11691946,2329.9,2328.9,12.94868822]
[1773687108611,6.12184353,2329.9,2328.9,12.94868822]
[1773687109006,6.12184353,2329.9,2329.0,10.003]
[1773687109208,6.12184353,2329.9,2329.1,10.003]
[1773687109413,6.12184353,2329.9,2329.0,22.94952271]
[1773687109808,5.83244199,2329.7,2328.7,12.94552271]
[1773687110017,5.83244199,2329.5,2328.7,12.94552271]
[1773687110216,5.83244199,2329.3,2328.7,12.94552271]
[1773687110716,5.83244199,2329.3,2328.5,12.94552271]
[1773687111312,5.83876431,2329.5,2328.5,12.94552271]
[1773687111512,5.83876431,2329.5,2328.6,10.013]
[1773687111712,5.83876431,2329.5,2328.7,12.94552271]
[1773687112413,5.7959404,2329.8,2328.7,12.94552271]
[1773687112618,5.7959404,2329.7,2328.7,12.94552271]
[1773687112918,5.80087535,2329.9,2328.9,12.75786737]
[1773687113120,5.80087535,2329.9,2329.1,12.75786737]
[1773687113417,5.80087535,2329.9,2328.3,12.75786737]
[1773687113717,5.82742699,2329.7,2328.5,12.75786737]
[1773687114314,5.82742699,2329.5,2328.5,12.75786737]
[1773687114716,5.82742699,2329.5,2328.6,10.026]
[1773687115021,5.82742699,2329.5,2328.7,13.38237353]
[1773687115620,5.82742699,2329.5,2328.2,0.21474]
[1773687115621,6.04205699,2329.5,2328.5,13.38237353]
[1773687116218,6.04205699,2329.5,2328.6,13.38237353]
[1773687116618,5.82742699,2329.5,2328.6,13.38237353]
[1773687117419,5.50677273,2329.3,2328.1,13.38237353]
[1773687117923,5.50677273,2329.3,2328.2,10.037]
[1773687118123,5.50677273,2329.3,2328.3,13.38237353]
[1773687118623,5.38587045,2329.5,2328.3,13.38237353]
[1773687121232,10.72561794,2329.4,2328.5,13.38237353]
[1773687121524,5.28142365,2329.4,2328.5,13.38237353]
[1773687121728,0.20974506,2329.6,2328.5,13.38237353]
[1773687121729,5.21579032,2329.2,2328.5,13.38237353]
[1773687122231,5.21579032,2329.2,2328.6,13.38237353]
[1773687123132,5.21579032,2329.2,2327.7,13.38237353]
[1773687123431,0.20974506,2329.6,2327.7,13.38237353]
[1773687123432,5.5827926,2329.0,2327.7,13.38237353]
[1773687123637,5.5827926,2329.0,2327.7,13.59715353]
[1773687123836,5.5827926,2329.0,2327.9,13.38237353]
[1773687124335,5.47812463,2328.8,2327.9,13.38237353]
[1773687125327,5.47812463,2328.8,2328.0,13.38237353]
[1773687125731,5.47812463,2328.8,2327.7,13.38237353]
[1773687126040,5.42777451,2328.6,2327.3,13.38237353]
[1773687126239,5.42777451,2328.4,2327.3,13.38237353]
[1773687126442,5.43662895,2328.2,2327.3,13.38237353]
[1773687126639,5.44040522,2328.2,2327.3,13.38237353]
[1773687126939,5.44040522,2328.2,2327.4,10.062]
[1773687127134,5.44040522,2328.2,2327.5,13.38237353]
[1773687128141,5.44040522,2328.2,2326.8,13.38237353]
[1773687129039,5.40690222,2327.9,2326.8,13.38237353]
[1773687129839,5.36822354,2327.7,2326.8,13.38237353]
[1773687130138,5.36822354,2327.7,2326.3,13.38237353]
[1773687130734,5.30626558,2327.5,2325.8,13.38237353]
[1773687130938,5.30626558,2327.3,2325.8,13.38237353]
[1773687131337,5.30626558,2327.3,2325.1,8.60107]
[1773687131338,5.30626558,2326.8,2325.6,13.38237353]
[1773687131641,5.29308572,2327.5,2325.7,13.38237353]
[1773687131840,5.29308572,2327.5,2325.9,13.38237353]
[1773687132541,5.29308572,2327.5,2326.0,13.38237353]
[1773687132836,5.29308572,2327.5,2326.0,23.46437353]
[1773687133041,5.29308572,2327.5,2326.1,13.38237353]
[1773687133742,5.29308572,2327.5,2326.2,13.38237353]
[1773687134139,5.32100616,2327.3,2326.2,13.38237353]
[1773687134339,5.32100616,2327.1,2326.2,13.38237353]
[1773687135940,5.32100616,2327.1,2325.8,13.38237353]
[1773687138442,5.53440495,2327.1,2325.8,13.38237353]
[1773687140144,5.26075116,2326.9,2325.8,13.38237353]
[1773687140550,5.32354661,2326.7,2325.3,13.38237353]
[1773687141549,5.32354661,2326.7,2325.7,13.38237353]
[1773687142448,5.22561579,2327.0,2325.7,13.38237353]
[1773687142752,5.22561579,2327.0,2325.9,11.84860461]
[1773687143047,1.17454517,2328.1,2326.5,11.84860461]
[1773687143251,5.43902197,2327.8,2326.7,11.84860461]
[1773687143446,5.43902197,2328.0,2326.9,11.84860461]
[1773687143647,5.43902197,2328.0,2326.9,11.85394407]
[1773687144643,0.21155529,2328.1,2326.9,11.85394407]
[1773687144950,0.00377627,2328.2,2326.9,11.85394407]
[1773687145148,5.22257821,2328.2,2326.9,11.85394407]
[1773687145451,5.22257821,2328.2,2327.1,11.84860461]
[1773687149352,5.43630564,2328.2,2327.1,11.84860461]
[1773687150955,5.11375497,2328.2,2327.1,11.84860461]
[1773687153352,5.11375497,2328.2,2327.1,11.95664461]
[1773687156161,0.2175037,2328.2,2327.1,11.95664461]
[1773687156359,0.2175037,2328.2,2327.3,11.97006461]
[1773687156959,0.2175037,2328.2,2327.5,11.84860461]
[1773687157259,0.2175037,2328.2,2327.5,11.97290461]
[1773687157457,3.33767717,2328.4,2327.5,11.84860461]
[1773687157959,3.33767717,2328.4,2327.5,11.97114461]
[1773687158458,3.34172539,2328.4,2327.5,11.97114461]
[1773687158659,3.55648659,2328.4,2327.5,11.97114461]
[1773687158859,0.21880942,2328.4,2327.5,11.97114461]
[1773687159156,0.21880942,2328.4,2327.7,11.97499461]
[1773687160654,0.21880942,2328.4,2327.2,11.84860461]
[1773687160655,3.59630022,2328.4,2327.2,11.84860461]
[1773687160855,3.59630022,2328.4,2327.4,11.84860461]
[1773687161158,3.59630022,2328.4,2327.6,11.97073461]
[1773687161454,3.22455912,2328.2,2326.6,11.84860461]
[1773687161654,0.21880942,2328.4,2326.8,11.84860461]
[1773687161655,3.22455912,2328.0,2326.8,11.84860461]
[1773687161957,3.18215839,2327.8,2326.8,11.84860461]
[1773687162157,16.18915088,2327.9,2326.8,11.84860461]
[1773687162158,3.18215839,2327.6,2326.8,11.84860461]
[1773687162549,3.18215839,2327.6,2326.8,11.85238088]
[1773687162954,3.58212989,2328.3,2327.0,11.84860461]
[1773687163161,2.43535467,2328.4,2327.2,11.84860461]
[1773687169159,7.30907552,2328.3,2327.2,11.84860461]
[1773687169366,1.90205933,2328.3,2327.2,11.84860461]
[1773687169861,1.90205933,2328.3,2327.2,11.95711461]
[1773687170062,1.90205933,2328.3,2327.2,11.84860461]
[1773687171067,0.21880942,2328.4,2327.2,11.84860461]
[1773687171068,7.07803475,2328.2,2327.2,11.84860461]
[1773687171264,1.66001895,2328.2,2327.2,11.95732461]
[1773687171465,5.41799585,2328.1,2327.2,11.95732461]
[1773687171663,1.76431619,2328.4,2327.2,11.95732461]
[1773687171966,5.41761696,2328.3,2327.2,11.95732461]
[1773687172166,5.41761696,2328.2,2327.2,11.95732461]
[1773687172466,5.41761696,2328.1,2327.2,11.95732461]
[1773687172668,5.41761696,2328.0,2327.2,11.95732461]
[1773687172868,5.34644608,2328.4,2327.4,12.36533579]
[1773687173165,6.86181547,2328.3,2327.4,12.36533579]
[1773687173366,5.42720748,2328.2,2327.4,12.36533579]
[1773687173568,6.77617543,2328.2,2327.4,12.36533579]
[1773687173767,5.42720748,2328.1,2327.4,12.36533579]
[1773687174959,0.43943026,2328.0,2327.4,12.36533579]
[1773687175162,5.14661578,2328.4,2327.4,12.36533579]
[1773687175563,6.30682512,2328.3,2327.4,12.36533579]
[1773687175864,6.26630169,2326.9,2325.7,11.61331766]
[1773687176064,6.26630169,2326.5,2325.7,11.61331766]
[1773687176960,6.63164883,2327.1,2326.1,11.61331766]
[1773687177160,6.63164883,2327.0,2326.1,11.61331766]
[1773687177967,6.61785805,2327.2,2326.1,11.61331766]
[1773687178175,6.62239371,2327.2,2326.1,11.61748825]
[1773687179163,6.836041,2327.2,2326.1,11.61748825]
[1773687179665,0.21818295,2327.2,2326.3,11.61331766]
[1773687179866,0.00453566,2327.2,2326.5,11.61331766]
[1773687180263,10.762,2327.5,2326.1,0.00417059]
[1773687180264,10.762,2327.5,2326.7,11.61331766]
[1773687180462,6.68687049,2327.8,2326.7,11.61331766]
[1773687180866,0.21367814,2327.8,2326.9,11.61331766]
[1773687181368,0.21721277,2327.8,2326.9,11.61331766]
[1773687181570,0.00353463,2327.8,2326.9,11.61331766]
[1773687181868,0.00353463,2327.8,2326.9,11.72176766]
[1773687182073,0.00353463,2327.8,2326.9,11.61331766]
[1773687182270,0.00353463,2327.8,2326.9,11.72157766]
[1773687182466,0.00353463,2327.8,2327.1,11.72357766]
[1773687183675,6.84855161,2328.1,2327.6,11.61331766]
[1773687183867,0.21813891,2328.1,2327.6,11.61331766]
[1773687184075,6.29925766,2328.3,2327.6,11.72280766]
[1773687184369,6.29615406,2328.6,2327.6,11.61331766]
[1773687184666,0.00534445,2328.6,2327.8,11.61331766]
[1773687184872,0.00534445,2328.6,2327.8,11.61793565]
[1773687185270,0.00534445,2328.6,2327.8,11.72665565]
[1773687186371,6.28788145,2329.1,2327.8,11.72665565]
[1773687186965,11.6199236,2329.0,2327.8,11.72665565]
[1773687187168,5.36748851,2328.9,2327.8,11.72665565]
[1773687187363,5.3705971,2328.9,2328.0,11.61331766]
[1773687187571,0.00310859,2328.9,2328.0,11.72299766]
[1773687187872,0.00310859,2328.9,2328.2,11.72739766]
[1773687188072,6.32424616,2329.2,2328.2,11.72739766]
[1773687188574,6.27536083,2329.4,2328.2,11.72739766]
[1773687188876,5.36429864,2329.3,2328.2,11.72739766]
[1773687189075,0.00392245,2329.3,2328.2,11.72739766]
[1773687189278,6.23877181,2329.3,2328.2,11.61331766]
[1773687189467,6.23877181,2329.3,2328.2,11.72142766]
[1773687189672,6.23877181,2329.3,2328.2,11.61331766]
[1773687189874,6.23877181,2329.3,2328.2,11.72121766]
[1773687190978,6.23877181,2329.3,2328.2,11.61331766]
[1773687191669,0.00392245,2329.3,2328.4,11.61331766]
[1773687191874,5.35751111,2329.6,2328.4,11.72080766]
[1773687192068,5.99775886,2329.7,2328.6,11.61331766]
[1773687192270,5.99775886,2329.7,2328.6,11.72149766]
[1773687192977,0.00348334,2329.7,2328.6,11.72149766]
[1773687193576,6.41738817,2329.7,2327.9,11.61331766]
[1773687193778,5.94321898,2329.3,2327.9,11.82807766]
[1773687194573,10.748,2329.2,2327.9,11.82807766]
[1773687194769,5.90735115,2329.3,2328.5,11.72111766]
[1773687194973,5.86766733,2329.5,2328.5,11.61331766]
[1773687202388,10.748,2329.6,2328.7,11.04125951]
[1773687202590,0.22001335,2329.7,2328.9,11.04125951]
[1773687202893,0.00348334,2329.7,2328.9,11.04125951]
[1773687204093,0.00348334,2329.7,2328.9,11.14913951]
[1773687206394,15.67349012,2330.0,2328.9,11.14913951]
[1773687206695,15.8914726,2330.0,2328.9,11.14913951]
[1773687207392,15.89517893,2330.0,2328.9,11.14913951]
[1773687207594,4.91445643,2329.9,2328.9,11.15317951]
[1773687208298,4.91445643,2329.9,2328.9,11.04125951]
[1773687210301,4.52351055,2329.7,2328.9,10.33176448]
[1773687211202,10.15932647,2329.6,2328.9,10.33176448]
[1773687211398,15.73848378,2330.0,2328.9,10.33176448]
[1773687211598,5.38048375,2329.9,2328.9,10.33176448]
[1773687212396,10.18224879,2329.9,2328.7,0.21469]
[1773687212603,4.80176504,2329.7,2328.5,11.04125951]
[1773687212802,4.76417963,2329.5,2328.5,11.04125951]
[1773687213003,4.76417963,2329.3,2328.5,11.04125951]
[1773687213303,4.76417963,2329.1,2328.5,11.04125951]
[1773687213503,12.05750056,2328.9,2328.0,11.04125951]
[1773687213705,12.05750056,2328.7,2328.0,11.04125951]
[1773687214401,12.05750056,2328.5,2327.8,0.00461799]
[1773687214699,12.05750056,2328.5,2327.4,11.04125951]
[1773687214700,12.05750056,2328.1,2326.9,11.04125951]
[1773687215006,12.05750056,2327.9,2326.9,11.04125951]
[1773687215205,5.39079626,2327.8,2326.9,11.04125951]
[1773687215706,17.4536913,2327.8,2326.9,11.04678665]
[1773687215904,12.06289504,2327.8,2326.9,11.04678665]
[1773687216100,12.06289504,2327.8,2326.6,11.04125951]
[1773687216310,12.05750056,2327.6,2326.6,11.04125951]
[1773687217107,12.05750056,2327.6,2326.6,11.0449376]
[1773687219105,12.06289504,2327.8,2326.8,11.04125951]
[1773687221811,12.28134126,2327.8,2326.8,11.04125951]
[1773687222415,12.28134126,2327.8,2327.0,11.04125951]
[1773687222416,0.2238407,2327.8,2327.0,11.04125951]
[1773687222612,12.28134126,2327.8,2327.0,11.04125951]
[1773687223613,12.28134126,2327.8,2326.7,11.04125951]
[1773687223918,12.05750056,2327.6,2326.6,11.0449376]
[1773687224114,12.05750056,2327.4,2326.6,11.0449376]
[1773687224914,0.2238407,2327.8,2326.6,11.0449376]
[1773687224915,10.9598407,2327.8,2326.6,11.0449376]
[1773687225217,12.05750056,2327.7,2326.6,11.0449376]
[1773687235125,10.71252492,2327.5,2326.6,11.0449376]
[1773687240433,10.92882996,2327.5,2326.6,11.0449376]
[1773687241432,10.71252492,2327.3,2326.6,0.00367809]
[1773687241728,10.71252492,2327.3,2326.6,11.44553272]
[1773687241926,10.71252492,2327.1,2326.6,11.44553272]
[1773687244331,10.71252492,2326.9,2325.8,11.44185463]
[1773687244531,10.71252492,2326.7,2325.3,11.44185463]
[1773687244731,9.4217015,2326.8,2325.3,11.44185463]
[1773687244732,10.71252492,2326.5,2325.3,11.44185463]
[1773687244938,10.71252492,2326.3,2325.3,11.44185463]
[1773687245334,10.71252492,2326.3,2325.3,11.44619864]
[1773687248233,10.96596749,2326.5,2325.5,11.44185463]
[1773687248438,10.755,2326.8,2325.7,11.44185463]
[1773687248642,21.46752492,2326.8,2325.7,11.44185463]
[1773687249335,21.46752492,2326.8,2325.3,11.97679922]
[1773687249336,10.755,2326.8,2325.9,11.44185463]
[1773687250043,16.07309074,2326.7,2325.9,11.44185463]
[1773687250338,10.71252492,2326.7,2325.9,11.44185463]
[1773687250841,10.97162797,2326.8,2325.9,11.44185463]
[1773687251735,21.68415289,2326.8,2325.9,11.44185463]
[1773687251942,10.71252492,2326.7,2325.9,11.44185463]
[1773687252844,10.71252492,2326.7,2325.4,11.44185463]
[1773687253031,10.71252492,2326.5,2325.4,11.44185463]
[1773687253231,10.71252492,2326.3,2325.4,11.44185463]
[1773687253437,10.71252492,2326.1,2325.4,11.44185463]
[1773687253638,0.00496756,2326.1,2325.4,11.44185463]
[1773687255939,10.71252492,2326.5,2325.6,11.44185463]
[1773687256741,10.71252492,2326.3,2325.3,11.44619864]
[1773687257038,3.57122378,2326.5,2325.3,11.44619864]
[1773687257039,21.48752492,2326.2,2325.3,11.44619864]
[1773687257440,10.71252492,2326.1,2325.3,11.44619864]
[1773687257835,10.92746492,2326.1,2325.3,0.00434401]
[1773687259043,10.71252492,2325.9,2325.3,0.00434401]
[1773687260148,10.71252492,2326.1,2325.3,11.44619864]
[1773687261943,11.01116205,2326.2,2325.3,11.44619864]
[1773687262540,10.792,2326.2,2325.3,11.44619864]
[1773687266845,10.808,2326.7,2325.7,10.59423968]
[1773687267045,10.808,2326.7,2325.3,0.00434401]
[1773687267046,10.66649072,2326.7,2325.9,10.59423968]
[1773687267850,10.66992054,2326.7,2325.9,10.59423968]
[1773687270145,10.818,2327.2,2326.0,4.81339495]
[1773687270347,10.66649072,2327.1,2326.1,10.59423968]
[1773687271251,10.67104403,2327.1,2326.1,10.59423968]
[1773687273152,10.66649072,2326.9,2326.1,10.59423968]
[1773687275449,10.66649072,2326.7,2326.1,10.59423968]
[1773687275756,21.49949072,2326.6,2326.1,10.59423968]
[1773687275951,10.834,2326.5,2326.1,10.59423968]
[1773687276254,10.66649072,2326.4,2325.9,10.59423968]
[1773687276957,10.66649072,2326.4,2325.4,10.59423968]
[1773687277954,10.66649072,2326.2,2325.4,10.59423968]
[1773687280956,11.09896584,2326.4,2325.4,10.59423968]
[1773687281151,10.66649072,2326.2,2325.4,10.59423968]
[1773687282150,10.66649072,2326.0,2324.7,10.59423968]
[1773687282349,10.66649072,2325.8,2324.7,10.59423968]
[1773687282549,10.66649072,2325.6,2324.7,10.59423968]
[1773687283256,10.66649072,2325.6,2324.7,10.59741591]
[1773687285057,10.88147072,2325.6,2324.7,10.59741591]
[1773687285855,10.87,2325.5,2324.7,10.59741591]
[1773687286158,21.53649072,2325.5,2324.7,10.59741591]
[1773687286360,10.66649072,2325.4,2324.7,10.59741591]